[Event "Titled Tuesday Blitz November 08 Early 2022"]
[White "Koridze, Lile"]
[Black "Shuvalova, Polina"]
[WhiteFideId "13612514"]
[BlackFideId "24171760"]
[WhiteElo "2050"]
[BlackElo "2342"]
[Result "1-0"]
[Round "06"]
[TimeControl "180+1"]
[Date "2022.11.09"]
[WhiteClock "0:00:09"]
[BlackClock "0:00:02"]

1. d4 {[%clk 0:03:00]}  Nf6 {[%clk 0:02:59]} 2. c4 {[%clk 0:03:00]}  e6 {[%clk 0:02:59]} 3. Nf3 {[%clk 0:02:59]}  d5 {[%clk 0:02:46]} 4. g3 {[%clk 0:02:59]}  Bb4+ {[%clk 0:02:46]} 5. Bd2 {[%clk 0:02:59]}  Be7 {[%clk 0:02:47]} 6. Bg2 {[%clk 0:03:00]}  Nbd7 {[%clk 0:02:46]} 7. O-O {[%clk 0:03:00]}  O-O {[%clk 0:02:46]} 8. Qc2 {[%clk 0:02:59]}  c6 {[%clk 0:02:46]} 9. Rd1 {[%clk 0:02:55]}  a5 {[%clk 0:02:46]} 10. Nc3 {[%clk 0:02:42]}  dxc4 {[%clk 0:02:35]} 11. a4 {[%clk 0:02:29]}  Nd5 {[%clk 0:02:23]} 12. Ne5 {[%clk 0:02:19]}  Nxe5 {[%clk 0:02:02]} 13. dxe5 {[%clk 0:02:18]}  Qc7 {[%clk 0:01:55]} 14. Qe4 {[%clk 0:02:15]}  b6 {[%clk 0:01:35]} 15. Qxc4 {[%clk 0:02:11]}  Ba6 {[%clk 0:01:30]} 16. Qe4 {[%clk 0:01:58]}  Rad8 {[%clk 0:01:30]} 17. Bf4 {[%clk 0:01:54]}  Nxc3 {[%clk 0:01:27]} 18. bxc3 {[%clk 0:01:54]}  c5 {[%clk 0:01:27]} 19. Rab1 {[%clk 0:01:43]}  h6 {[%clk 0:01:22]} 20. c4 {[%clk 0:01:42]}  Rd7 {[%clk 0:01:14]} 21. Rxd7 {[%clk 0:01:40]}  Qxd7 {[%clk 0:01:15]} 22. Rxb6 {[%clk 0:01:40]}  Bc8 {[%clk 0:01:01]} 23. Qc2 {[%clk 0:01:34]}  Rd8 {[%clk 0:00:54]} 24. Be4 {[%clk 0:01:25]}  g5 {[%clk 0:00:43]} 25. Be3 {[%clk 0:01:21]}  Qc7 {[%clk 0:00:43]} 26. Qb2 {[%clk 0:01:18]}  Bd7 {[%clk 0:00:31]} 27. Rb7 {[%clk 0:01:13]}  Qc8 {[%clk 0:00:31]} 28. Qb6 {[%clk 0:01:09]}  Bf8 {[%clk 0:00:26]} 29. Rc7 {[%clk 0:00:54]}  Qb8 {[%clk 0:00:17]} 30. Qxb8 {[%clk 0:00:53]}  Rxb8 {[%clk 0:00:17]} 31. Rxd7 {[%clk 0:00:53]}  Rb4 {[%clk 0:00:17]} 32. Bc6 {[%clk 0:00:47]}  Rxc4 {[%clk 0:00:17]} 33. Bb5 {[%clk 0:00:47]}  Re4 {[%clk 0:00:15]} 34. Ra7 {[%clk 0:00:35]}  c4 {[%clk 0:00:15]} 35. Rc7 {[%clk 0:00:34]}  Rxe5 {[%clk 0:00:14]} 36. Rxc4 {[%clk 0:00:34]}  Bb4 {[%clk 0:00:14]} 37. Bd4 {[%clk 0:00:31]}  Rd5 {[%clk 0:00:14]} 38. Rc8+ {[%clk 0:00:30]}  Kh7 {[%clk 0:00:14]} 39. Bd3+ {[%clk 0:00:28]}  f5 {[%clk 0:00:15]} 40. Bc3 {[%clk 0:00:24]}  Kg6 {[%clk 0:00:09]} 41. Bxb4 {[%clk 0:00:24]}  axb4 {[%clk 0:00:10]} 42. Rb8 {[%clk 0:00:24]}  Rd4 {[%clk 0:00:09]} 43. a5 {[%clk 0:00:24]}  Kf6 {[%clk 0:00:07]} 44. a6 {[%clk 0:00:24]}  Rd7 {[%clk 0:00:07]} 45. Rxb4 {[%clk 0:00:23]}  Ke5 {[%clk 0:00:07]} 46. Rb7 {[%clk 0:00:23]}  Rd8 {[%clk 0:00:07]} 47. a7 {[%clk 0:00:22]}  Ra8 {[%clk 0:00:08]} 48. Bb5 {[%clk 0:00:18]}  Kd6 {[%clk 0:00:08]} 49. Rh7 {[%clk 0:00:16]}  Kc5 {[%clk 0:00:09]} 50. Bd3 {[%clk 0:00:15]}  Kb6 {[%clk 0:00:07]} 51. Rxh6 {[%clk 0:00:15]}  Kxa7 {[%clk 0:00:08]} 52. Rxe6 {[%clk 0:00:15]}  Rf8 {[%clk 0:00:08]} 53. Re5 {[%clk 0:00:14]}  f4 {[%clk 0:00:09]} 54. Rxg5 {[%clk 0:00:14]}  fxg3 {[%clk 0:00:09]} 55. hxg3 {[%clk 0:00:14]}  Kb6 {[%clk 0:00:10]} 56. Kg2 {[%clk 0:00:15]}  Kc7 {[%clk 0:00:11]} 57. Rf5 {[%clk 0:00:15]}  Ra8 {[%clk 0:00:10]} 58. g4 {[%clk 0:00:16]}  Kd6 {[%clk 0:00:11]} 59. g5 {[%clk 0:00:15]}  Ra4 {[%clk 0:00:12]} 60. Kf3 {[%clk 0:00:14]}  Ke6 {[%clk 0:00:12]} 61. Rb5 {[%clk 0:00:12]}  Rd4 {[%clk 0:00:12]} 62. g6 {[%clk 0:00:12]}  Kf6 {[%clk 0:00:13]} 63. Rb6+ {[%clk 0:00:12]}  Kg7 {[%clk 0:00:13]} 64. Ke3 {[%clk 0:00:13]}  Rd7 {[%clk 0:00:13]} 65. f4 {[%clk 0:00:13]}  Re7+ {[%clk 0:00:13]} 66. Kf3 {[%clk 0:00:13]}  Rc7 {[%clk 0:00:13]} 67. f5 {[%clk 0:00:14]}  Rc1 {[%clk 0:00:14]} 68. f6+ {[%clk 0:00:14]}  Kh6 {[%clk 0:00:14]} 69. g7 {[%clk 0:00:13]}  Rf1+ {[%clk 0:00:13]} 70. Kg2 {[%clk 0:00:14]}  Rf4 {[%clk 0:00:10]} 71. f7+ {[%clk 0:00:12]}  Kh5 {[%clk 0:00:09]} 72. Rh6+ {[%clk 0:00:12]}  Kxh6 {[%clk 0:00:09]} 73. g8=Q {[%clk 0:00:12]}  Rg4+ {[%clk 0:00:07]} 74. Kf3 {[%clk 0:00:10]}  Rg7 {[%clk 0:00:02]} 75. Qh8+ {[%clk 0:00:09]}  Rh7 {[%clk 0:00:01]} 76. Qxh7+ {[%clk 0:00:09]}  Kg5 {[%clk 0:00:02]} 77. Qg6+ {[%clk 0:00:09]}  Kh4 {[%clk 0:00:02]} 78. Qg4# {[%clk 0:00:09]} 1-0


[Site "https://www.chess.com"]

[Event "Titled Tuesday Blitz November 08 Early 2022"]
[White "Kostiukov, Alexandr"]
[Black "Kuchava, Ana"]
[WhiteFideId "14108100"]
[BlackFideId "13605348"]
[WhiteElo "2202"]
[BlackElo "2001"]
[Result "0-1"]
[Round "06"]
[TimeControl "180+1"]
[Date "2022.11.09"]
[WhiteClock "0:00:11"]
[BlackClock "0:00:09"]

1. g3 {[%clk 0:02:52]}  d5 {[%clk 0:02:57]} 2. Bg2 {[%clk 0:02:52]}  Nf6 {[%clk 0:02:56]} 3. d3 {[%clk 0:02:53]}  c5 {[%clk 0:02:52]} 4. e4 {[%clk 0:02:52]}  dxe4 {[%clk 0:02:48]} 5. dxe4 {[%clk 0:02:52]}  Qxd1+ {[%clk 0:02:48]} 6. Kxd1 {[%clk 0:02:52]}  Nc6 {[%clk 0:02:42]} 7. f3 {[%clk 0:02:51]}  e5 {[%clk 0:02:39]} 8. Be3 {[%clk 0:02:51]}  Be7 {[%clk 0:02:37]} 9. Nd2 {[%clk 0:02:50]}  O-O {[%clk 0:02:36]} 10. c3 {[%clk 0:02:50]}  Be6 {[%clk 0:02:34]} 11. Bh3 {[%clk 0:02:50]}  Bxh3 {[%clk 0:02:21]} 12. Nxh3 {[%clk 0:02:51]}  Rfd8 {[%clk 0:02:21]} 13. Ke2 {[%clk 0:02:51]}  Ne8 {[%clk 0:02:14]} 14. a4 {[%clk 0:02:50]}  Rac8 {[%clk 0:02:07]} 15. Nc4 {[%clk 0:02:49]}  f6 {[%clk 0:02:04]} 16. Rhd1 {[%clk 0:02:41]}  Rxd1 {[%clk 0:01:58]} 17. Rxd1 {[%clk 0:02:40]}  Rd8 {[%clk 0:01:59]} 18. Rd5 {[%clk 0:02:35]}  Kf7 {[%clk 0:01:57]} 19. Nf2 {[%clk 0:02:19]}  b6 {[%clk 0:01:51]} 20. f4 {[%clk 0:02:11]}  exf4 {[%clk 0:01:45]} 21. gxf4 {[%clk 0:02:09]}  Ke6 {[%clk 0:01:45]} 22. f5+ {[%clk 0:02:05]}  Kf7 {[%clk 0:01:44]} 23. Bf4 {[%clk 0:01:59]}  g6 {[%clk 0:01:33]} 24. Ng4 {[%clk 0:01:44]}  g5 {[%clk 0:00:52]} 25. Rxd8 {[%clk 0:01:29]}  Bxd8 {[%clk 0:00:52]} 26. Nd6+ {[%clk 0:01:19]}  Nxd6 {[%clk 0:00:51]} 27. Bxd6 {[%clk 0:01:19]}  Be7 {[%clk 0:00:42]} 28. Bc7 {[%clk 0:01:13]}  Bd8 {[%clk 0:00:33]} 29. Bxd8 {[%clk 0:01:07]}  Nxd8 {[%clk 0:00:34]} 30. Kd3 {[%clk 0:01:04]}  h5 {[%clk 0:00:31]} 31. Ne3 {[%clk 0:01:03]}  Nc6 {[%clk 0:00:31]} 32. Nc4 {[%clk 0:01:04]}  Ke7 {[%clk 0:00:31]} 33. Ke3 {[%clk 0:00:57]}  Kd7 {[%clk 0:00:24]} 34. h3 {[%clk 0:00:48]}  Kc7 {[%clk 0:00:24]} 35. Ke2 {[%clk 0:00:37]}  a6 {[%clk 0:00:22]} 36. Ne3 {[%clk 0:00:36]}  Ne7 {[%clk 0:00:17]} 37. c4 {[%clk 0:00:34]}  b5 {[%clk 0:00:15]} 38. axb5 {[%clk 0:00:33]}  axb5 {[%clk 0:00:16]} 39. b3 {[%clk 0:00:32]}  bxc4 {[%clk 0:00:13]} 40. bxc4 {[%clk 0:00:32]}  Kd6 {[%clk 0:00:14]} 41. Kf3 {[%clk 0:00:26]}  Nc6 {[%clk 0:00:14]} 42. Ke2 {[%clk 0:00:24]}  Ke5 {[%clk 0:00:13]} 43. Kd3 {[%clk 0:00:23]}  Nb4+ {[%clk 0:00:13]} 44. Ke2 {[%clk 0:00:21]}  Kxe4 {[%clk 0:00:13]} 45. Ng2 {[%clk 0:00:18]}  Kxf5 {[%clk 0:00:13]} 46. Ne3+ {[%clk 0:00:18]}  Ke4 {[%clk 0:00:13]} 47. Nd1 {[%clk 0:00:18]}  f5 {[%clk 0:00:11]} 48. Kd2 {[%clk 0:00:16]}  Kd4 {[%clk 0:00:11]} 49. Ne3 {[%clk 0:00:15]}  f4 {[%clk 0:00:10]} 50. Nf5+ {[%clk 0:00:16]}  Kxc4 {[%clk 0:00:10]} 51. h4 {[%clk 0:00:16]}  gxh4 {[%clk 0:00:09]} 52. Nxh4 {[%clk 0:00:16]}  Kd4 {[%clk 0:00:09]} 53. Nf5+ {[%clk 0:00:15]}  Ke4 {[%clk 0:00:08]} 54. Nd6+ {[%clk 0:00:15]}  Kf3 {[%clk 0:00:08]} 55. Kc3 {[%clk 0:00:13]}  Nd5+ {[%clk 0:00:07]} 56. Kc4 {[%clk 0:00:12]}  Nf6 {[%clk 0:00:08]} 57. Kxc5 {[%clk 0:00:12]}  Ne4+ {[%clk 0:00:08]} 58. Nxe4 {[%clk 0:00:11]}  Kxe4 {[%clk 0:00:09]} 0-1


[Site "https://www.chess.com"]

[Event "Titled Tuesday Blitz November 08 Early 2022"]
[White "Kowalczyk, Pawel"]
[Black "Liang, Awonder"]
[WhiteFideId "1130641"]
[BlackFideId "2056437"]
[WhiteElo "2324"]
[BlackElo "2508"]
[Result "0-1"]
[Round "06"]
[TimeControl "180+1"]
[Date "2022.11.08"]
[WhiteClock "0:00:46"]
[BlackClock "0:01:57"]

1. e4 {[%clk 0:03:00]}  a5 {[%clk 0:03:00]} 2. Nf3 {[%clk 0:03:00]}  a4 {[%clk 0:02:59]} 3. d4 {[%clk 0:03:01]}  e6 {[%clk 0:02:59]} 4. Bd3 {[%clk 0:03:00]}  b6 {[%clk 0:02:58]} 5. O-O {[%clk 0:03:00]}  Bb7 {[%clk 0:02:58]} 6. c4 {[%clk 0:03:00]}  d6 {[%clk 0:02:54]} 7. Nc3 {[%clk 0:02:59]}  Nd7 {[%clk 0:02:53]} 8. Nxa4 {[%clk 0:02:57]}  g6 {[%clk 0:02:53]} 9. Nc3 {[%clk 0:02:57]}  Bg7 {[%clk 0:02:54]} 10. Re1 {[%clk 0:02:56]}  Ne7 {[%clk 0:02:54]} 11. b3 {[%clk 0:02:55]}  h6 {[%clk 0:02:54]} 12. Bb2 {[%clk 0:02:55]}  g5 {[%clk 0:02:54]} 13. h3 {[%clk 0:02:55]}  Ng6 {[%clk 0:02:54]} 14. Bf1 {[%clk 0:02:49]}  h5 {[%clk 0:02:53]} 15. Nh2 {[%clk 0:02:46]}  g4 {[%clk 0:02:50]} 16. d5 {[%clk 0:02:37]}  gxh3 {[%clk 0:02:46]} 17. g3 {[%clk 0:02:31]}  h4 {[%clk 0:02:46]} 18. Na4 {[%clk 0:02:24]}  Bxb2 {[%clk 0:02:44]} 19. Nxb2 {[%clk 0:02:25]}  hxg3 {[%clk 0:02:45]} 20. fxg3 {[%clk 0:02:24]}  Qg5 {[%clk 0:02:42]} 21. Qf3 {[%clk 0:02:14]}  Rg8 {[%clk 0:02:40]} 22. Qe3 {[%clk 0:02:06]}  Nge5 {[%clk 0:02:32]} 23. Qxg5 {[%clk 0:02:04]}  Rxg5 {[%clk 0:02:33]} 24. Re3 {[%clk 0:02:02]}  Rh5 {[%clk 0:02:13]} 25. g4 {[%clk 0:01:50]}  Rh4 {[%clk 0:02:13]} 26. Rxh3 {[%clk 0:01:46]}  Rxh3 {[%clk 0:02:13]} 27. Bxh3 {[%clk 0:01:46]}  Nc5 {[%clk 0:02:13]} 28. a4 {[%clk 0:01:36]}  Nxb3 {[%clk 0:02:12]} 29. Ra3 {[%clk 0:01:21]}  Nc5 {[%clk 0:02:11]} 30. Bg2 {[%clk 0:01:16]}  Ke7 {[%clk 0:02:11]} 31. Kf2 {[%clk 0:01:14]}  Bc8 {[%clk 0:02:06]} 32. Nf3 {[%clk 0:00:53]}  Nxg4+ {[%clk 0:02:04]} 33. Kg3 {[%clk 0:00:53]}  e5 {[%clk 0:01:55]} 34. Bh3 {[%clk 0:00:48]}  Nxe4+ {[%clk 0:01:55]} 35. Kh4 {[%clk 0:00:47]}  Ngf6 {[%clk 0:01:55]} 36. Bxc8 {[%clk 0:00:47]}  Rxc8 {[%clk 0:01:56]} 37. a5 {[%clk 0:00:46]}  Rh8# {[%clk 0:01:57]} 0-1


[Site "https://www.chess.com"]

[Event "Titled Tuesday Blitz November 08 Early 2022"]
[White "Krzyzanowski, Marcin"]
[Black "Anton Guijarro, David"]
[WhiteFideId "1132199"]
[BlackFideId "2285525"]
[WhiteElo "2435"]
[BlackElo "2579"]
[Result "0-1"]
[Round "06"]
[TimeControl "180+1"]
[Date "2022.11.08"]
[WhiteClock "0:00:01"]
[BlackClock "0:00:50"]

1. Nf3 {[%clk 0:03:00]}  c5 {[%clk 0:02:59]} 2. e4 {[%clk 0:02:59]}  Nc6 {[%clk 0:02:59]} 3. Bb5 {[%clk 0:02:58]}  e6 {[%clk 0:02:59]} 4. Bf1 {[%clk 0:02:57]}  Nf6 {[%clk 0:02:53]} 5. d3 {[%clk 0:02:52]}  d5 {[%clk 0:02:52]} 6. Nbd2 {[%clk 0:02:49]}  Be7 {[%clk 0:02:48]} 7. g3 {[%clk 0:02:45]}  e5 {[%clk 0:02:48]} 8. Bg2 {[%clk 0:02:44]}  d4 {[%clk 0:02:45]} 9. O-O {[%clk 0:02:42]}  h6 {[%clk 0:02:41]} 10. Nc4 {[%clk 0:02:41]}  Qc7 {[%clk 0:02:41]} 11. a4 {[%clk 0:02:41]}  g5 {[%clk 0:02:40]} 12. c3 {[%clk 0:02:36]}  Be6 {[%clk 0:02:38]} 13. cxd4 {[%clk 0:02:35]}  cxd4 {[%clk 0:02:36]} 14. Na3 {[%clk 0:02:28]}  a6 {[%clk 0:02:33]} 15. Bd2 {[%clk 0:02:28]}  Rc8 {[%clk 0:02:29]} 16. Rc1 {[%clk 0:02:27]}  Bxa3 {[%clk 0:02:21]} 17. bxa3 {[%clk 0:02:27]}  Qd6 {[%clk 0:02:20]} 18. Bb4 {[%clk 0:02:12]}  Nxb4 {[%clk 0:02:20]} 19. Rxc8+ {[%clk 0:02:09]}  Bxc8 {[%clk 0:02:21]} 20. axb4 {[%clk 0:02:10]}  O-O {[%clk 0:02:20]} 21. Qc2 {[%clk 0:02:02]}  Bd7 {[%clk 0:02:15]} 22. Qc5 {[%clk 0:02:01]}  Qxc5 {[%clk 0:02:14]} 23. bxc5 {[%clk 0:02:02]}  Re8 {[%clk 0:02:13]} 24. Nd2 {[%clk 0:01:34]}  Bxa4 {[%clk 0:02:00]} 25. Nc4 {[%clk 0:01:34]}  Bb5 {[%clk 0:01:59]} 26. Nd6 {[%clk 0:01:34]}  Ra8 {[%clk 0:01:52]} 27. Rb1 {[%clk 0:01:24]}  Bc6 {[%clk 0:01:46]} 28. Nxb7 {[%clk 0:00:54]}  Nd7 {[%clk 0:01:44]} 29. Na5 {[%clk 0:00:51]}  Bb5 {[%clk 0:01:39]} 30. c6 {[%clk 0:00:49]}  Nc5 {[%clk 0:01:32]} 31. Bh3 {[%clk 0:00:42]}  Kf8 {[%clk 0:01:15]} 32. c7 {[%clk 0:00:26]}  Ne6 {[%clk 0:01:13]} 33. Bxe6 {[%clk 0:00:14]}  fxe6 {[%clk 0:01:14]} 34. Rc1 {[%clk 0:00:09]}  Rc8 {[%clk 0:01:11]} 35. Rc5 {[%clk 0:00:08]}  Ke7 {[%clk 0:01:07]} 36. Nc4 {[%clk 0:00:06]}  Bxc4 {[%clk 0:00:54]} 37. Rxc4 {[%clk 0:00:07]}  Kd7 {[%clk 0:00:54]} 38. Ra4 {[%clk 0:00:06]}  Ra8 {[%clk 0:00:52]} 39. Ra5 {[%clk 0:00:07]}  Kxc7 {[%clk 0:00:52]} 40. Rxe5 {[%clk 0:00:07]}  a5 {[%clk 0:00:52]} 41. Rxe6 {[%clk 0:00:02]}  a4 {[%clk 0:00:52]} 42. Re5 {[%clk 0:00:01]}  Kc6 {[%clk 0:00:50]} 43. Rc5+ {[%clk 0:00:01]}  Kxc5 {[%clk 0:00:50]} 0-1


[Site "https://www.chess.com"]

[Event "Titled Tuesday Blitz November 08 Early 2022"]
[White "Lakshmi C"]
[Black "Skibbe, Willi"]
[WhiteFideId "25035347"]
[BlackFideId "4682190"]
[WhiteElo "1865"]
[BlackElo "2369"]
[Result "1-0"]
[Round "06"]
[TimeControl "180+1"]
[Date "2022.11.09"]
[WhiteClock "0:00:10"]
[BlackClock "0:00:04"]

1. e4 {[%clk 0:02:52]}  e5 {[%clk 0:02:59]} 2. Nf3 {[%clk 0:02:50]}  Nc6 {[%clk 0:02:59]} 3. g3 {[%clk 0:02:50]}  Nf6 {[%clk 0:02:56]} 4. Qe2 {[%clk 0:02:49]}  Bc5 {[%clk 0:02:49]} 5. Bg2 {[%clk 0:02:48]}  O-O {[%clk 0:02:47]} 6. O-O {[%clk 0:02:46]}  d6 {[%clk 0:02:47]} 7. h3 {[%clk 0:02:46]}  h6 {[%clk 0:02:46]} 8. c3 {[%clk 0:02:44]}  a5 {[%clk 0:02:42]} 9. Rd1 {[%clk 0:02:42]}  Re8 {[%clk 0:02:33]} 10. d3 {[%clk 0:02:26]}  d5 {[%clk 0:02:31]} 11. Be3 {[%clk 0:02:20]}  d4 {[%clk 0:02:10]} 12. Bd2 {[%clk 0:02:17]}  Bf8 {[%clk 0:02:01]} 13. cxd4 {[%clk 0:02:09]}  Nxd4 {[%clk 0:01:58]} 14. Nxd4 {[%clk 0:02:08]}  Qxd4 {[%clk 0:01:56]} 15. Nc3 {[%clk 0:02:05]}  c5 {[%clk 0:01:49]} 16. Nb5 {[%clk 0:01:55]}  Qd7 {[%clk 0:01:44]} 17. a4 {[%clk 0:01:54]}  b6 {[%clk 0:01:42]} 18. f4 {[%clk 0:01:43]}  Ba6 {[%clk 0:01:38]} 19. fxe5 {[%clk 0:01:43]}  Rxe5 {[%clk 0:01:37]} 20. Bf4 {[%clk 0:01:43]}  Ree8 {[%clk 0:01:22]} 21. Nc7 {[%clk 0:01:41]}  Bd6 {[%clk 0:01:13]} 22. Nxe8 {[%clk 0:01:39]}  Rxe8 {[%clk 0:01:11]} 23. Bxd6 {[%clk 0:01:32]}  Qxd6 {[%clk 0:01:11]} 24. Qf2 {[%clk 0:01:31]}  Bxd3 {[%clk 0:01:05]} 25. Qe3 {[%clk 0:01:10]}  c4 {[%clk 0:01:01]} 26. b3 {[%clk 0:01:05]}  Qe5 {[%clk 0:00:28]} 27. bxc4 {[%clk 0:01:02]}  Bxe4 {[%clk 0:00:28]} 28. Re1 {[%clk 0:00:36]}  Qc7 {[%clk 0:00:14]} 29. Qc3 {[%clk 0:00:18]}  Qc6 {[%clk 0:00:10]} 30. Bxe4 {[%clk 0:00:14]}  Nxe4 {[%clk 0:00:10]} 31. Qd4 {[%clk 0:00:13]}  f5 {[%clk 0:00:10]} 32. Re3 {[%clk 0:00:12]}  Re7 {[%clk 0:00:09]} 33. Rf1 {[%clk 0:00:11]}  Rd7 {[%clk 0:00:08]} 34. Qe5 {[%clk 0:00:11]}  Qxc4 {[%clk 0:00:02]} 35. Qxf5 {[%clk 0:00:10]}  Nd2 {[%clk 0:00:03]} 36. Qf8+ {[%clk 0:00:10]}  Kh7 {[%clk 0:00:04]} 37. Qf5+ {[%clk 0:00:10]}  Kg8 {[%clk 0:00:04]} 38. Re8# {[%clk 0:00:10]} 1-0


[Site "https://www.chess.com"]

[Event "Titled Tuesday Blitz November 08 Early 2022"]
[White "Lehtosaari, Mauri"]
[Black "Savic, Miomir"]
[WhiteFideId "501999"]
[BlackFideId "934550"]
[WhiteElo "2518"]
[BlackElo "2122"]
[Result "0-1"]
[Round "06"]
[TimeControl "180+1"]
[Date "2022.11.09"]
[WhiteClock "0:00:13"]
[BlackClock "0:00:59"]

1. d4 {[%clk 0:03:00]}  c5 {[%clk 0:02:58]} 2. e3 {[%clk 0:03:00]}  d5 {[%clk 0:02:56]} 3. Nf3 {[%clk 0:03:01]}  Nf6 {[%clk 0:02:55]} 4. c4 {[%clk 0:03:00]}  e6 {[%clk 0:02:54]} 5. Nc3 {[%clk 0:03:00]}  Nc6 {[%clk 0:02:54]} 6. cxd5 {[%clk 0:02:59]}  exd5 {[%clk 0:02:53]} 7. Be2 {[%clk 0:03:00]}  c4 {[%clk 0:02:48]} 8. O-O {[%clk 0:02:42]}  Bb4 {[%clk 0:02:39]} 9. Bd2 {[%clk 0:02:40]}  O-O {[%clk 0:02:36]} 10. b3 {[%clk 0:02:15]}  cxb3 {[%clk 0:02:30]} 11. Qxb3 {[%clk 0:02:04]}  Qd6 {[%clk 0:02:18]} 12. Nb5 {[%clk 0:01:58]}  Qe7 {[%clk 0:02:15]} 13. Bxb4 {[%clk 0:01:57]}  Nxb4 {[%clk 0:02:12]} 14. Ne5 {[%clk 0:01:47]}  Nc6 {[%clk 0:02:09]} 15. Nxc6 {[%clk 0:01:42]}  bxc6 {[%clk 0:02:10]} 16. Nc3 {[%clk 0:01:41]}  Bf5 {[%clk 0:02:07]} 17. Na4 {[%clk 0:01:39]}  Ne4 {[%clk 0:02:04]} 18. Qb2 {[%clk 0:00:45]}  Qg5 {[%clk 0:01:56]} 19. Bf3 {[%clk 0:00:40]}  h5 {[%clk 0:01:52]} 20. Kh1 {[%clk 0:00:36]}  Rab8 {[%clk 0:01:50]} 21. Qc1 {[%clk 0:00:35]}  Rfe8 {[%clk 0:01:47]} 22. Nc5 {[%clk 0:00:33]}  Nd6 {[%clk 0:01:46]} 23. h3 {[%clk 0:00:25]}  Qh4 {[%clk 0:01:40]} 24. Kh2 {[%clk 0:00:23]}  g5 {[%clk 0:01:34]} 25. Bd1 {[%clk 0:00:19]}  g4 {[%clk 0:01:29]} 26. Bc2 {[%clk 0:00:19]}  gxh3 {[%clk 0:01:24]} 27. g3 {[%clk 0:00:20]}  Qg4 {[%clk 0:01:21]} 28. Bd1 {[%clk 0:00:19]}  Qg6 {[%clk 0:01:19]} 29. Bf3 {[%clk 0:00:19]}  Nc4 {[%clk 0:01:16]} 30. Qd1 {[%clk 0:00:18]}  Nxe3 {[%clk 0:01:12]} 31. fxe3 {[%clk 0:00:18]}  Rb2+ {[%clk 0:01:08]} 32. Kh1 {[%clk 0:00:16]}  Qxg3 {[%clk 0:01:05]} 33. Be2 {[%clk 0:00:13]}  Be4+ {[%clk 0:01:02]} 34. Nxe4 {[%clk 0:00:13]}  Qg2# {[%clk 0:00:59]} 0-1


[Site "https://www.chess.com"]

[Event "Titled Tuesday Blitz November 08 Early 2022"]
[White "Lewtak, Damian"]
[Black "Zhigalko, Sergei"]
[WhiteFideId "1141724"]
[BlackFideId "13502956"]
[WhiteElo "2587"]
[BlackElo "2868"]
[Result "0-1"]
[Round "06"]
[TimeControl "180+1"]
[Date "2022.11.09"]
[WhiteClock "0:00:28"]
[BlackClock "0:00:03"]

1. b3 {[%clk 0:03:00]}  e5 {[%clk 0:02:59]} 2. g3 {[%clk 0:03:00]}  Nf6 {[%clk 0:02:59]} 3. Bg2 {[%clk 0:03:00]}  d5 {[%clk 0:02:59]} 4. Bb2 {[%clk 0:03:00]}  Bd6 {[%clk 0:03:00]} 5. e3 {[%clk 0:03:00]}  O-O {[%clk 0:02:57]} 6. Ne2 {[%clk 0:02:59]}  Re8 {[%clk 0:02:50]} 7. d3 {[%clk 0:02:58]}  a5 {[%clk 0:02:47]} 8. a4 {[%clk 0:02:56]}  c6 {[%clk 0:02:47]} 9. Nd2 {[%clk 0:02:54]}  Na6 {[%clk 0:02:43]} 10. O-O {[%clk 0:02:52]}  Nb4 {[%clk 0:02:37]} 11. h3 {[%clk 0:02:41]}  h6 {[%clk 0:02:33]} 12. e4 {[%clk 0:02:41]}  Bc5 {[%clk 0:02:03]} 13. Kh2 {[%clk 0:02:36]}  dxe4 {[%clk 0:01:56]} 14. dxe4 {[%clk 0:02:31]}  b6 {[%clk 0:01:48]} 15. Nc4 {[%clk 0:02:20]}  Ba6 {[%clk 0:01:31]} 16. f4 {[%clk 0:02:17]}  exf4 {[%clk 0:01:01]} 17. Rxf4 {[%clk 0:02:01]}  Nh5 {[%clk 0:00:36]} 18. Rf5 {[%clk 0:01:50]}  g6 {[%clk 0:00:29]} 19. Nd4 {[%clk 0:01:32]}  Ng7 {[%clk 0:00:13]} 20. Rf1 {[%clk 0:01:24]}  Bxc4 {[%clk 0:00:06]} 21. bxc4 {[%clk 0:01:23]}  Bxd4 {[%clk 0:00:05]} 22. Bxd4 {[%clk 0:01:20]}  Nxc2 {[%clk 0:00:06]} 23. Bc3 {[%clk 0:00:37]}  Qxd1 {[%clk 0:00:07]} 24. Rfxd1 {[%clk 0:00:33]}  Nxa1 {[%clk 0:00:07]} 25. Bxa1 {[%clk 0:00:30]}  Rad8 {[%clk 0:00:04]} 26. Rb1 {[%clk 0:00:31]}  Rb8 {[%clk 0:00:02]} 27. e5 {[%clk 0:00:32]}  c5 {[%clk 0:00:02]} 28. Bc6 {[%clk 0:00:32]}  Red8 {[%clk 0:00:02]} 29. Bd5 {[%clk 0:00:32]}  Ne6 {[%clk 0:00:02]} 30. Bc3 {[%clk 0:00:32]}  Rd7 {[%clk 0:00:01]} 31. Bxa5 {[%clk 0:00:30]}  Nc7 {[%clk 0:00:01]} 32. Bxb6 {[%clk 0:00:27]}  Nxd5 {[%clk 0:00:02]} 33. cxd5 {[%clk 0:00:28]}  Rxd5 {[%clk 0:00:02]} 34. a5 {[%clk 0:00:29]}  Rxe5 {[%clk 0:00:02]} 35. Rc1 {[%clk 0:00:28]}  Re2+ {[%clk 0:00:02]} 36. Kg1 {[%clk 0:00:28]}  Rc8 {[%clk 0:00:02]} 37. a6 {[%clk 0:00:29]}  Rb2 {[%clk 0:00:02]} 38. Bxc5 {[%clk 0:00:28]}  Ra2 {[%clk 0:00:03]} 39. a7 {[%clk 0:00:28]}  Rxa7 {[%clk 0:00:03]} 0-1


[Site "https://www.chess.com"]